[Event "Rapid della Domenica"]
[Site "Chess.com"]
[Date "2020.04.26"]
[Round "2"]
[White "Luca090267"]
[Black "donaldnecesito"]
[Result "0-1"]
[WhiteElo "1367"]
[BlackElo "1696"]
[TimeControl "720+3"]
[EndTime "6:51:09 PDT"]
[Termination "donaldnecesito ha vinto per abbandono"]

1. e4 {[%clk 0:12:02.9]} 1... c5 {[%clk 0:12:01.8]} 2. Nc3 {[%clk 0:12:03.6]}
2... d6 {[%clk 0:12:00.6]} 3. g3 {[%clk 0:12:05.5]} 3... Nf6 {[%clk 0:12:01.7]}
4. Bg2 {[%clk 0:12:07]} 4... g6 {[%clk 0:12:02.8]} 5. d3 {[%clk 0:12:09.2]} 5...
Bg7 {[%clk 0:12:04.7]} 6. f4 {[%clk 0:12:11.4]} 6... O-O {[%clk 0:12:06.1]} 7.
Nf3 {[%clk 0:12:13.7]} 7... Nc6 {[%clk 0:12:07.8]} 8. O-O {[%clk 0:12:15.6]}
8... Bg4 {[%clk 0:11:52]} 9. h3 {[%clk 0:12:13.2]} 9... Bxf3 {[%clk 0:11:53.4]}
10. Qxf3 {[%clk 0:12:04.9]} 10... Nd4 {[%clk 0:11:56.3]} 11. Qf2 {[%clk
0:12:06.5]} 11... a6 {[%clk 0:11:51.4]} 12. Be3 {[%clk 0:11:59.2]} 12... Nd7
{[%clk 0:11:49.3]} 13. Nd1 {[%clk 0:11:59.1]} 13... Qb6 {[%clk 0:11:42]} 14. c3
{[%clk 0:11:59.5]} 14... Nc6 {[%clk 0:11:30.5]} 15. Rb1 {[%clk 0:11:19.4]} 15...
Qa5 {[%clk 0:11:24.3]} 16. a3 {[%clk 0:11:17.7]} 16... b5 {[%clk 0:11:24.1]} 17.
e5 {[%clk 0:09:45.9]} 17... Rac8 {[%clk 0:11:20.9]} 18. d4 {[%clk 0:09:25.2]}
18... b4 {[%clk 0:11:13]} 19. axb4 {[%clk 0:08:35.7]} 19... cxb4 {[%clk
0:11:10.2]} 20. Qd2 {[%clk 0:08:18.9]} 20... dxe5 {[%clk 0:10:18.2]} 21. dxe5
{[%clk 0:07:57.1]} 21... Rfd8 {[%clk 0:10:05.9]} 22. cxb4 {[%clk 0:06:47.4]}
22... Nxb4 {[%clk 0:09:55.8]} 23. Nc3 {[%clk 0:06:37]} 23... Nxe5 {[%clk
0:09:53.3]} 24. Nd5 {[%clk 0:05:45.8]} 24... Nec6 {[%clk 0:09:15.8]} 25. Bb6
{[%clk 0:04:36.6]} 25... Rxd5 {[%clk 0:06:03.4]} 26. Bxd5 {[%clk 0:03:58.2]}
26... Qxb6+ {[%clk 0:06:03.4]} 27. Kh2 {[%clk 0:03:53.5]} 27... Rd8 {[%clk
0:06:03.6]} 28. Bxf7+ {[%clk 0:03:09.2]} 28... Kxf7 {[%clk 0:06:04.5]} 29. Qe1
{[%clk 0:02:58.5]} 29... Rd3 {[%clk 0:05:43.2]} 30. f5 {[%clk 0:02:40.6]} 30...
gxf5 {[%clk 0:05:21.7]} 31. Rxf5+ {[%clk 0:02:38.3]} 31... Bf6 {[%clk
0:05:22.2]} 32. Qf1 {[%clk 0:02:14.1]} 32... Qe3 {[%clk 0:05:19.2]} 33. Kg2
{[%clk 0:02:03.9]} 33... Qe4+ {[%clk 0:05:06.1]} 34. Kh2 {[%clk 0:01:44.9]}
34... Rd2+ {[%clk 0:04:42.5]} 35. Kg1 {[%clk 0:01:44.2]} 35... Ke8 {[%clk
0:04:12.3]} 36. Rxf6 {[%clk 0:01:31.9]} 36... Qd4+ {[%clk 0:02:27.1]} 37. Rf2
{[%clk 0:01:19]} 37... Rxf2 {[%clk 0:02:25.9]} 38. Qxf2 {[%clk 0:01:18.9]} 38...
Nc2 {[%clk 0:01:53.6]} 39. Rf1 {[%clk 0:01:04.1]} 39... Ne5 {[%clk 0:01:47.7]}
40. Qxd4 {[%clk 0:00:58.7]} 40... Nxd4 {[%clk 0:01:48.6]} 41. Rf4 {[%clk
0:00:56.6]} 41... Ne2+ {[%clk 0:01:48.2]} 42. Kf2 {[%clk 0:00:57]} 42... Nxf4
{[%clk 0:01:50.2]} 43. gxf4 {[%clk 0:00:58.3]} 43... Nd3+ {[%clk 0:01:52.4]} 44.
Ke3 {[%clk 0:00:59.4]} 44... Nxb2 {[%clk 0:01:54.2]} 0-1

[Event "Rapid della Domenica"]
[Site "Chess.com"]
[Date "2020.04.26"]
[Round "3"]
[White "caramante"]
[Black "pedrak"]
[Result "0-1"]
[WhiteElo "1577"]
[BlackElo "1732"]
[TimeControl "720+3"]
[EndTime "7:03:38 PDT"]
[Termination "pedrak ha vinto per abbandono"]

1. Nf3 {[%clk 0:12:02.3]} 1... d5 {[%clk 0:11:54.2]} 2. d4 {[%clk 0:12:02.9]}
2... Nf6 {[%clk 0:11:53.8]} 3. g3 {[%clk 0:12:03.8]} 3... Bf5 {[%clk 0:11:53.9]}
4. c3 {[%clk 0:12:04.1]} 4... h6 {[%clk 0:11:55]} 5. Bg2 {[%clk 0:12:05.9]} 5...
e6 {[%clk 0:11:56.5]} 6. O-O {[%clk 0:12:07.3]} 6... c6 {[%clk 0:11:58]} 7. h3
{[%clk 0:12:09.1]} 7... Be7 {[%clk 0:11:59.3]} 8. Nbd2 {[%clk 0:12:05.9]} 8...
Ne4 {[%clk 0:12:00.6]} 9. Qb3 {[%clk 0:11:57.5]} 9... Qb6 {[%clk 0:12:00.3]} 10.
Qxb6 {[%clk 0:11:56.5]} 10... axb6 {[%clk 0:12:01.8]} 11. a3 {[%clk 0:11:58.5]}
11... Nd7 {[%clk 0:11:58.3]} 12. Nb3 {[%clk 0:11:51.6]} 12... O-O {[%clk
0:11:55.9]} 13. Bf4 {[%clk 0:11:45.2]} 13... b5 {[%clk 0:11:49.6]} 14. g4 {[%clk
0:11:37.3]} 14... Bh7 {[%clk 0:11:50.4]} 15. Ne5 {[%clk 0:11:24.4]} 15... Nb6
{[%clk 0:11:43.1]} 16. f3 {[%clk 0:11:13.9]} 16... Nd6 {[%clk 0:11:39.2]} 17.
Nc5 {[%clk 0:11:08]} 17... Ra7 {[%clk 0:11:25.3]} 18. Rae1 {[%clk 0:10:46.2]}
18... Ndc4 {[%clk 0:11:18.2]} 19. Bc1 {[%clk 0:10:37.9]} 19... Rd8 {[%clk
0:11:04.4]} 20. Nxc4 {[%clk 0:10:37]} 20... bxc4 {[%clk 0:11:03.2]} 21. e4
{[%clk 0:10:34.8]} 21... Bxc5 {[%clk 0:10:57.3]} 22. dxc5 {[%clk 0:10:35.1]}
22... Na4 {[%clk 0:10:56.1]} 23. exd5 {[%clk 0:10:31.5]} 23... cxd5 {[%clk
0:10:53.3]} 24. f4 {[%clk 0:10:27.8]} 24... Nxc5 {[%clk 0:10:41.6]} 25. Be3
{[%clk 0:10:24.8]} 25... b6 {[%clk 0:10:43.1]} 26. Bxc5 {[%clk 0:10:24.6]} 26...
bxc5 {[%clk 0:10:44.1]} 27. f5 {[%clk 0:10:26.3]} 27... Ra6 {[%clk 0:10:32.6]}
28. fxe6 {[%clk 0:10:14.8]} 28... fxe6 {[%clk 0:10:33.6]} 29. Rf2 {[%clk
0:09:59.7]} 29... Bd3 {[%clk 0:10:32.4]} 30. Bf1 {[%clk 0:09:49.3]} 30... Rf8
{[%clk 0:10:28.9]} 31. Bxd3 {[%clk 0:09:45.6]} 31... Rxf2 {[%clk 0:10:28.4]} 32.
Kxf2 {[%clk 0:09:45.4]} 32... cxd3 {[%clk 0:10:30.5]} 33. Ke3 {[%clk 0:09:46]}
33... c4 {[%clk 0:10:31.7]} 34. Rb1 {[%clk 0:09:39]} 34... Kf7 {[%clk
0:10:31.7]} 35. Kd4 {[%clk 0:09:39.8]} 35... Ra5 {[%clk 0:10:18.1]} 36. h4
{[%clk 0:09:40]} 36... Ke7 {[%clk 0:10:19.1]} 37. Ke5 {[%clk 0:09:40]} 37... Ra8
{[%clk 0:10:18.8]} 38. g5 {[%clk 0:09:23.7]} 38... hxg5 {[%clk 0:10:14.7]} 39.
hxg5 {[%clk 0:09:24.4]} 39... Rf8 {[%clk 0:10:16.2]} 40. a4 {[%clk 0:09:13.3]}
40... Rf5+ {[%clk 0:10:16.5]} 41. Kd4 {[%clk 0:09:14]} 41... Kd6 {[%clk
0:10:17.8]} 42. a5 {[%clk 0:09:14.7]} 42... e5+ {[%clk 0:10:19.5]} 43. Ke3
{[%clk 0:09:16]} 43... Rf7 {[%clk 0:10:17.7]} 44. Ra1 {[%clk 0:09:15.1]} 44...
Ra7 {[%clk 0:10:19.1]} 45. b4 {[%clk 0:09:10.9]} 45... cxb3 {[%clk 0:10:20.3]}
46. Kxd3 {[%clk 0:09:12.8]} 46... Kc5 {[%clk 0:10:22.1]} 47. Ra3 {[%clk
0:09:11.5]} 47... b2 {[%clk 0:10:20.8]} 48. Rb3 {[%clk 0:09:11.1]} 48... Rxa5
{[%clk 0:10:21.1]} 49. Rxb2 {[%clk 0:09:12.5]} 49... Ra1 {[%clk 0:10:17.3]} 50.
Rb7 {[%clk 0:09:12.1]} 50... e4+ {[%clk 0:10:14.1]} 51. Kd2 {[%clk 0:09:10.8]}
51... Ra2+ {[%clk 0:10:11.3]} 52. Ke3 {[%clk 0:09:06.3]} 52... Rc2 {[%clk
0:10:07.1]} 53. Rxg7 {[%clk 0:09:05.4]} 53... Rxc3+ {[%clk 0:10:08.4]} 54. Kd2
{[%clk 0:09:02.8]} 54... Kd4 {[%clk 0:10:08.8]} 55. g6 {[%clk 0:09:00.9]} 55...
Rg3 {[%clk 0:10:10.2]} 56. Ke2 {[%clk 0:08:59.8]} 56... Rg2+ {[%clk 0:10:09.6]}
57. Kf1 {[%clk 0:09:00.3]} 57... Rg4 {[%clk 0:10:07.9]} 58. Ke2 {[%clk
0:09:01.1]} 58... e3 {[%clk 0:10:07.2]} 59. Rg8 {[%clk 0:09:02.1]} 59... Rg2+
{[%clk 0:10:04.3]} 60. Kf3 {[%clk 0:09:02.6]} 60... Rf2+ {[%clk 0:10:05.7]} 61.
Kg3 {[%clk 0:09:03.5]} 61... Rf1 {[%clk 0:10:04.5]} 62. Kg2 {[%clk 0:09:00]}
62... e2 {[%clk 0:10:06.1]} 63. Re8 {[%clk 0:08:55.5]} 63... e1=Q {[%clk
0:10:04.8]} 64. Rxe1 {[%clk 0:08:55.2]} 64... Rxe1 {[%clk 0:10:06.4]} 65. g7
{[%clk 0:08:55.8]} 65... Re8 {[%clk 0:10:07.7]} 0-1

[Event "Rapid della Domenica"]
[Site "Chess.com"]
[Date "2020.04.26"]
[Round "3"]
[White "Luca090267"]
[Black "sergiodone"]
[Result "0-1"]
[WhiteElo "1325"]
[BlackElo "1524"]
[TimeControl "720+3"]
[EndTime "7:07:40 PDT"]
[Termination "sergiodone ha vinto per abbandono"]

1. e4 {[%clk 0:12:02.9]} 1... c5 {[%clk 0:11:48.6]} 2. Nc3 {[%clk 0:12:03.4]}
2... d6 {[%clk 0:11:45.1]} 3. g3 {[%clk 0:12:05.7]} 3... Nc6 {[%clk 0:11:43.3]}
4. Bg2 {[%clk 0:12:07.9]} 4... Bd7 {[%clk 0:11:44.8]} 5. d3 {[%clk 0:12:10]}
5... e6 {[%clk 0:11:46.4]} 6. f4 {[%clk 0:12:12.2]} 6... Be7 {[%clk 0:11:45.5]}
7. Nf3 {[%clk 0:12:14.5]} 7... a6 {[%clk 0:11:45.5]} 8. O-O {[%clk 0:12:16.7]}
8... h5 {[%clk 0:11:46.5]} 9. h3 {[%clk 0:11:59.8]} 9... h4 {[%clk 0:11:48.2]}
10. g4 {[%clk 0:12:00.4]} 10... b5 {[%clk 0:11:35.5]} 11. a3 {[%clk 0:11:59.2]}
11... Qc7 {[%clk 0:11:36.6]} 12. Be3 {[%clk 0:11:57.3]} 12... Nf6 {[%clk
0:11:37.5]} 13. Qd2 {[%clk 0:11:54.5]} 13... Rc8 {[%clk 0:11:21.5]} 14. Ne2
{[%clk 0:11:30.8]} 14... e5 {[%clk 0:10:57.5]} 15. f5 {[%clk 0:11:27.1]} 15...
Nd4 {[%clk 0:10:40.7]} 16. Bf2 {[%clk 0:10:45.8]} 16... Nxf3+ {[%clk 0:10:36.2]}
17. Bxf3 {[%clk 0:10:44.7]} 17... Bc6 {[%clk 0:10:36.5]} 18. Bg2 {[%clk
0:10:40.3]} 18... Qb7 {[%clk 0:10:37.6]} 19. c3 {[%clk 0:09:37.7]} 19... c4
{[%clk 0:10:15.5]} 20. g5 {[%clk 0:09:03.8]} 20... Ng4 {[%clk 0:09:26.8]} 21.
hxg4 {[%clk 0:08:20.8]} 21... h3 {[%clk 0:09:28.5]} 22. Bh1 {[%clk 0:08:16.2]}
22... h2+ {[%clk 0:09:27.5]} 23. Kg2 {[%clk 0:08:14.9]} 23... cxd3 {[%clk
0:09:29.3]} 24. Ng3 {[%clk 0:07:46.9]} 24... f6 {[%clk 0:09:13.2]} 25. g6 {[%clk
0:07:19.1]} 25... d5 {[%clk 0:09:14]} 26. Be3 {[%clk 0:07:11.3]} 26... dxe4
{[%clk 0:09:14.9]} 27. Kf2 {[%clk 0:07:08.7]} 27... Bd5 {[%clk 0:09:08]} 28. Ke1
{[%clk 0:06:47.4]} 28... Rh4 {[%clk 0:08:56.8]} 29. Qd1 {[%clk 0:06:19.9]} 29...
Bc5 {[%clk 0:08:52.4]} 30. Bxc5 {[%clk 0:05:54.9]} 30... Rxc5 {[%clk 0:08:52.8]}
31. a4 {[%clk 0:04:44.4]} 31... Rh3 {[%clk 0:08:42.9]} 32. Kf2 {[%clk
0:04:27.6]} 32... Qa7 {[%clk 0:08:29.5]} 33. Qd2 {[%clk 0:04:12.6]} 33... Rxc3+
{[%clk 0:08:26]} 34. Ke1 {[%clk 0:04:02]} 34... Rc2 {[%clk 0:08:26.6]} 35. Qf2
{[%clk 0:03:21.6]} 35... Rxf2 {[%clk 0:08:22.8]} 0-1

[Event "Rapid della Domenica"]
[Site "Chess.com"]
[Date "2020.04.26"]
[Round "3"]
[White "fausto2p"]
[Black "markk000"]
[Result "0-1"]
[WhiteElo "1034"]
[BlackElo "1531"]
[TimeControl "720+3"]
[EndTime "7:08:52 PDT"]
[Termination "markk000 ha vinto per abbandono"]

1. d4 {[%clk 0:12:02.9]} 1... Nf6 {[%clk 0:12:00]} 2. c4 {[%clk 0:12:03]} 2...
g6 {[%clk 0:12:01.9]} 3. Nc3 {[%clk 0:12:03.4]} 3... Bg7 {[%clk 0:12:04]} 4. e4
{[%clk 0:12:04.5]} 4... d6 {[%clk 0:12:05.9]} 5. f3 {[%clk 0:11:55.6]} 5... Nbd7
{[%clk 0:12:05.9]} 6. Be3 {[%clk 0:11:48.1]} 6... O-O {[%clk 0:11:57.6]} 7. g4
{[%clk 0:11:41.5]} 7... c5 {[%clk 0:11:54.2]} 8. d5 {[%clk 0:11:36.6]} 8... Nb6
{[%clk 0:11:52.8]} 9. Qd2 {[%clk 0:11:05.7]} 9... Nfd7 {[%clk 0:11:51.4]} 10. b3
{[%clk 0:10:55.9]} 10... Ne5 {[%clk 0:11:47.9]} 11. Bg2 {[%clk 0:10:46]} 11...
e6 {[%clk 0:11:43.4]} 12. Nge2 {[%clk 0:10:30.6]} 12... Qh4+ {[%clk 0:11:02.4]}
13. Bf2 {[%clk 0:10:13.2]} 13... Qf6 {[%clk 0:11:03.2]} 14. O-O-O {[%clk
0:07:29.3]} 14... Nxf3 {[%clk 0:10:45.6]} 15. Bxf3 {[%clk 0:06:59.3]} 15... Qxf3
{[%clk 0:10:44.9]} 16. Rhg1 {[%clk 0:06:17.2]} 16... Qxf2 {[%clk 0:10:35.3]} 17.
Rdf1 {[%clk 0:06:07]} 17... Qxh2 {[%clk 0:10:29.8]} 18. Rh1 {[%clk 0:04:57.8]}
18... Qe5 {[%clk 0:10:23.5]} 19. Kc2 {[%clk 0:03:23.9]} 19... exd5 {[%clk
0:10:18.9]} 20. exd5 {[%clk 0:03:06.4]} 20... Bxg4 {[%clk 0:10:03.2]} 21. Re1
{[%clk 0:02:08.7]} 21... Bxe2 {[%clk 0:09:52.2]} 22. Rxe2 {[%clk 0:02:06.9]}
22... Qxc3+ {[%clk 0:09:52.7]} 23. Qxc3 {[%clk 0:02:03.8]} 23... Bxc3 {[%clk
0:09:53.9]} 24. Kxc3 {[%clk 0:02:05.2]} 24... Rfe8 {[%clk 0:09:51.5]} 25. Rhe1
{[%clk 0:02:04.2]} 25... Rxe2 {[%clk 0:09:52.8]} 26. Rxe2 {[%clk 0:02:04.6]}
26... Kf8 {[%clk 0:09:53]} 27. Kd2 {[%clk 0:01:54.5]} 27... Re8 {[%clk
0:09:54.7]} 28. Rf2 {[%clk 0:01:51.5]} 28... Kg7 {[%clk 0:09:54.7]} 29. Kc3
{[%clk 0:01:24.1]} 29... h5 {[%clk 0:09:55]} 30. b4 {[%clk 0:01:15.1]} 30... Nd7
{[%clk 0:09:49.6]} 31. a3 {[%clk 0:00:46.8]} 31... h4 {[%clk 0:09:48.3]} 32. Rf4
{[%clk 0:00:40.4]} 32... h3 {[%clk 0:09:47.5]} 33. Rh4 {[%clk 0:00:38.4]} 33...
Rh8 {[%clk 0:09:49.4]} 0-1

[Event "Rapid della Domenica"]
[Site "Chess.com"]
[Date "2020.04.26"]
[Round "3"]
[White "donaldnecesito"]
[Black "toninoiuorio"]
[Result "0-1"]
[WhiteElo "1642"]
[BlackElo "1550"]
[TimeControl "720+3"]
[EndTime "7:09:19 PDT"]
[Termination "toninoiuorio ha vinto per abbandono"]

1. e4 {[%clk 0:12:02.9]} 1... c5 {[%clk 0:12:01.3]} 2. Nf3 {[%clk 0:11:59.6]}
2... e6 {[%clk 0:12:03.3]} 3. d4 {[%clk 0:12:01.1]} 3... cxd4 {[%clk 0:12:05.3]}
4. Nxd4 {[%clk 0:12:02.6]} 4... a6 {[%clk 0:12:07.7]} 5. Nc3 {[%clk 0:12:03.4]}
5... Qc7 {[%clk 0:12:09.9]} 6. a3 {[%clk 0:12:00.9]} 6... Nf6 {[%clk 0:12:10.9]}
7. Be3 {[%clk 0:12:01.4]} 7... Nc6 {[%clk 0:12:12.4]} 8. f3 {[%clk 0:11:59.7]}
8... b5 {[%clk 0:12:10.2]} 9. Be2 {[%clk 0:12:00.6]} 9... Bb7 {[%clk 0:12:09.3]}
10. Qd2 {[%clk 0:12:01]} 10... Bd6 {[%clk 0:12:01.8]} 11. Bg5 {[%clk 0:11:54.2]}
11... Nxd4 {[%clk 0:11:59.8]} 12. Qxd4 {[%clk 0:11:41.3]} 12... Be5 {[%clk
0:12:01.5]} 13. Qd2 {[%clk 0:11:40.6]} 13... O-O {[%clk 0:12:02.6]} 14. f4
{[%clk 0:11:37.6]} 14... Bxc3 {[%clk 0:12:03.1]} 15. bxc3 {[%clk 0:11:38.6]}
15... Nxe4 {[%clk 0:12:04.7]} 16. Qd3 {[%clk 0:11:33.7]} 16... Nxg5 {[%clk
0:11:54]} 17. fxg5 {[%clk 0:11:35.1]} 17... Bxg2 {[%clk 0:11:39.3]} 18. Rg1
{[%clk 0:11:33.9]} 18... Bd5 {[%clk 0:11:41.2]} 19. h4 {[%clk 0:11:18.8]} 19...
Rac8 {[%clk 0:11:39.9]} 20. Rg3 {[%clk 0:11:05.2]} 20... Bc4 {[%clk 0:11:38]}
21. Qe3 {[%clk 0:11:05.3]} 21... Bxe2 {[%clk 0:11:38.4]} 22. Kxe2 {[%clk
0:11:04.3]} 22... Qc4+ {[%clk 0:11:39.8]} 23. Kf2 {[%clk 0:10:58.5]} 23... Qc5
{[%clk 0:11:39.2]} 24. Rd1 {[%clk 0:10:50.9]} 24... d5 {[%clk 0:11:40.5]} 25.
Rd4 {[%clk 0:10:46.8]} 25... Qxa3 {[%clk 0:11:39]} 26. h5 {[%clk 0:10:41.7]}
26... Rc4 {[%clk 0:11:33.4]} 27. h6 {[%clk 0:10:41.6]} 27... Rfc8 {[%clk
0:11:30.6]} 28. Qe5 {[%clk 0:10:15.8]} 28... Qf8 {[%clk 0:11:27.9]} 29. g6
{[%clk 0:09:36.9]} 29... hxg6 {[%clk 0:11:03.5]} 30. Rdd3 {[%clk 0:08:38.3]}
30... gxh6 {[%clk 0:10:46]} 31. Qe3 {[%clk 0:07:49.1]} 31... Qg7 {[%clk
0:10:43.4]} 32. Rh3 {[%clk 0:07:40.7]} 32... Kh7 {[%clk 0:10:43]} 33. Qf3 {[%clk
0:06:48.1]} 33... d4 {[%clk 0:10:25.4]} 34. Rh4 {[%clk 0:05:39.1]} 34... Rxc3
{[%clk 0:10:23.4]} 35. Rhxd4 {[%clk 0:05:10.3]} 35... Rxd3 {[%clk 0:10:21]} 36.
Qxd3 {[%clk 0:05:02.4]} 36... Qe5 {[%clk 0:09:07.7]} 37. Kg1 {[%clk 0:04:04.3]}
37... Qc5 {[%clk 0:08:51.5]} 38. Kh1 {[%clk 0:03:44.2]} 38... Qxc2 {[%clk
0:08:46.8]} 39. Qf3 {[%clk 0:03:37.6]} 39... Qc1+ {[%clk 0:08:00.2]} 40. Kg2
{[%clk 0:03:28.2]} 40... Qg5+ {[%clk 0:07:48.1]} 41. Rg4 {[%clk 0:03:15.9]}
41... Qd5 {[%clk 0:07:47.9]} 0-1

[Event "Rapid della Domenica"]
[Site "Chess.com"]
[Date "2020.04.26"]
[Round "3"]
[White "crippo"]
[Black "sirmale49"]
[Result "1/2-1/2"]
[WhiteElo "1528"]
[BlackElo "1405"]
[TimeControl "720+3"]
[EndTime "7:09:21 PDT"]
[Termination "Partita patta per ripetizione di mosse"]

1. e4 {[%clk 0:12:02.9]} 1... d5 {[%clk 0:11:57.3]} 2. Nf3 {[%clk 0:12:05.8]}
2... dxe4 {[%clk 0:11:57.7]} 3. Ng5 {[%clk 0:11:58.8]} 3... Qd5 {[%clk
0:11:50.8]} 4. d3 {[%clk 0:11:59.5]} 4... Nf6 {[%clk 0:11:40.4]} 5. Nc3 {[%clk
0:11:58.6]} 5... Qd6 {[%clk 0:10:50.9]} 6. Ncxe4 {[%clk 0:11:57.5]} 6... Nxe4
{[%clk 0:10:51.7]} 7. Nxe4 {[%clk 0:11:59.5]} 7... Qe5 {[%clk 0:10:44.2]} 8. Be2
{[%clk 0:12:00.1]} 8... Nc6 {[%clk 0:10:44.3]} 9. O-O {[%clk 0:12:01.3]} 9... e6
{[%clk 0:10:43.2]} 10. Rb1 {[%clk 0:11:57.3]} 10... Bd6 {[%clk 0:10:43.6]} 11.
Ng3 {[%clk 0:11:57.6]} 11... Nd4 {[%clk 0:10:34.7]} 12. Be3 {[%clk 0:11:51.3]}
12... Nxe2+ {[%clk 0:10:33]} 13. Qxe2 {[%clk 0:11:52.7]} 13... f5 {[%clk
0:10:30.8]} 14. d4 {[%clk 0:11:49.7]} 14... Qf6 {[%clk 0:10:18.8]} 15. f4 {[%clk
0:11:42.4]} 15... O-O {[%clk 0:10:17.4]} 16. c3 {[%clk 0:11:42.8]} 16... b6
{[%clk 0:10:08.2]} 17. Rf3 {[%clk 0:11:44.7]} 17... a5 {[%clk 0:10:05.7]} 18.
Nh5 {[%clk 0:11:46.3]} 18... Qf7 {[%clk 0:09:52.1]} 19. Rg3 {[%clk 0:11:47.4]}
19... g6 {[%clk 0:09:51.7]} 20. d5 {[%clk 0:11:04.2]} 20... e5 {[%clk
0:09:20.4]} 21. fxe5 {[%clk 0:10:58.1]} 21... Bxe5 {[%clk 0:09:17.7]} 22. Nf4
{[%clk 0:10:55]} 22... Ba6 {[%clk 0:08:48.9]} 23. Qd2 {[%clk 0:10:53.1]} 23...
Bxf4 {[%clk 0:08:01.4]} 24. Bxf4 {[%clk 0:10:53.2]} 24... Bc4 {[%clk 0:07:51]}
25. b3 {[%clk 0:10:54.4]} 25... Bxd5 {[%clk 0:07:49.9]} 26. c4 {[%clk
0:10:54.9]} 26... Be4 {[%clk 0:07:50.7]} 27. Re1 {[%clk 0:10:50.9]} 27... Rad8
{[%clk 0:07:51.1]} 28. Qc3 {[%clk 0:10:49.9]} 28... Rfe8 {[%clk 0:07:01]} 29.
Be5 {[%clk 0:10:45.3]} 29... Re6 {[%clk 0:06:19.9]} 30. h4 {[%clk 0:10:33.2]}
30... Rde8 {[%clk 0:06:20.4]} 31. Bh8 {[%clk 0:10:33.9]} 31... h5 {[%clk
0:05:38.9]} 32. Qa1 {[%clk 0:09:55]} 32... Bc6 {[%clk 0:04:46.4]} 33. Rxe6
{[%clk 0:09:50.1]} 33... Rxe6 {[%clk 0:04:45.4]} 34. Kh2 {[%clk 0:09:41.2]}
34... f4 {[%clk 0:04:32]} 35. Rg5 {[%clk 0:09:36.6]} 35... Re2 {[%clk
0:04:21.2]} 36. Bd4 {[%clk 0:08:52.8]} 36... f3 {[%clk 0:04:11.2]} 37. Qb1
{[%clk 0:08:53.5]} 37... Qf4+ {[%clk 0:03:44.9]} 38. Kg1 {[%clk 0:08:46.3]}
38... Rxg2+ {[%clk 0:03:25.5]} 39. Rxg2 {[%clk 0:08:45.8]} 39... Qxd4+ {[%clk
0:03:06.2]} 40. Rf2 {[%clk 0:08:47.1]} 40... Qg4+ {[%clk 0:03:03.3]} 41. Kf1
{[%clk 0:08:42.9]} 41... Qh3+ {[%clk 0:02:59.6]} 42. Kg1 {[%clk 0:08:44.8]}
42... Qg4+ {[%clk 0:02:53.3]} 43. Kf1 {[%clk 0:08:46.2]} 43... Qh3+ {[%clk
0:02:39.1]} 44. Kg1 {[%clk 0:08:48.3]} 44... Qg4+ {[%clk 0:02:28.3]} 1/2-1/2

[Event "Rapid della Domenica"]
[Site "Chess.com"]
[Date "2020.04.26"]
[Round "3"]
[White "SanSecondoPR"]
[Black "bellapero"]
[Result "0-1"]
[WhiteElo "1237"]
[BlackElo "1412"]
[TimeControl "720+3"]
[EndTime "7:11:10 PDT"]
[Termination "bellapero ha vinto per abbandono"]

1. e4 {[%clk 0:12:02.9]} 1... c5 {[%clk 0:11:58.5]} 2. d4 {[%clk 0:12:03.1]}
2... cxd4 {[%clk 0:11:58.9]} 3. Nf3 {[%clk 0:12:04.4]} 3... Nc6 {[%clk
0:11:58.2]} 4. Nxd4 {[%clk 0:12:04.7]} 4... Nf6 {[%clk 0:11:39.5]} 5. Nc3 {[%clk
0:12:04.3]} 5... g6 {[%clk 0:11:33.3]} 6. Bg5 {[%clk 0:12:03.8]} 6... Bg7 {[%clk
0:11:32.5]} 7. Qd2 {[%clk 0:11:59.2]} 7... O-O {[%clk 0:11:32.8]} 8. Bh6 {[%clk
0:11:55.8]} 8... Nxe4 {[%clk 0:10:43]} 9. Nxc6 {[%clk 0:11:49.3]} 9... Nxd2
{[%clk 0:10:18.5]} 10. Nxd8 {[%clk 0:11:45.8]} 10... Bxh6 {[%clk 0:10:12.5]} 11.
Nd5 {[%clk 0:11:20]} 11... Rxd8 {[%clk 0:10:00.1]} 12. Nxe7+ {[%clk 0:11:20.3]}
12... Kf8 {[%clk 0:09:54.6]} 13. Nd5 {[%clk 0:11:17.1]} 13... Ne4 {[%clk
0:08:58.9]} 14. f4 {[%clk 0:11:05.7]} 14... b6 {[%clk 0:08:48.3]} 15. Bc4 {[%clk
0:10:58.2]} 15... Bb7 {[%clk 0:08:12.8]} 16. Rd1 {[%clk 0:10:31.4]} 16... Rac8
{[%clk 0:08:01.1]} 17. Bb3 {[%clk 0:10:26.7]} 17... Nc5 {[%clk 0:07:41.4]} 18.
Bc4 {[%clk 0:10:11.9]} 18... Re8+ {[%clk 0:07:33.7]} 19. Kf1 {[%clk 0:10:00.2]}
19... Re4 {[%clk 0:07:20.7]} 20. b3 {[%clk 0:09:43.2]} 20... Ne6 {[%clk
0:06:34]} 21. g3 {[%clk 0:09:37.1]} 21... Nd4 {[%clk 0:06:15.9]} 22. Kf2 {[%clk
0:09:25.8]} 22... Rce8 {[%clk 0:05:57.3]} 23. Nf6 {[%clk 0:09:21.5]} 23... Rc8
{[%clk 0:05:45.5]} 24. Nxe4 {[%clk 0:09:10.4]} 24... Bxe4 {[%clk 0:04:35.2]} 25.
Rhe1 {[%clk 0:09:06]} 25... Bf5 {[%clk 0:04:32.9]} 26. Rxd4 {[%clk 0:09:01.2]}
26... Bg7 {[%clk 0:04:09.1]} 27. Rd5 {[%clk 0:08:34.3]} 27... Be6 {[%clk
0:04:04.4]} 28. Rdd1 {[%clk 0:08:01.6]} 28... Bg4 {[%clk 0:04:00.2]} 29. Rb1
{[%clk 0:07:54]} 29... d5 {[%clk 0:03:36.4]} 30. Bd3 {[%clk 0:07:49.2]} 30...
Bc3 {[%clk 0:03:30.8]} 31. Ba6 {[%clk 0:07:09.9]} 31... Bxe1+ {[%clk 0:03:19.5]}
32. Rxe1 {[%clk 0:07:00]} 32... Rxc2+ {[%clk 0:03:17.9]} 33. Be2 {[%clk
0:06:52]} 33... Rxa2 {[%clk 0:03:05.3]} 34. b4 {[%clk 0:06:37.4]} 34... a5
{[%clk 0:02:51.5]} 35. bxa5 {[%clk 0:06:34.8]} 35... bxa5 {[%clk 0:02:49.2]} 36.
Ke3 {[%clk 0:06:35.5]} 36... Rxe2+ {[%clk 0:02:35.1]} 37. Rxe2 {[%clk
0:06:34.9]} 37... Bxe2 {[%clk 0:02:24.8]} 38. Kxe2 {[%clk 0:06:36]} 38... a4
{[%clk 0:02:25.8]} 39. Kd2 {[%clk 0:06:37.3]} 39... a3 {[%clk 0:02:25.1]} 40.
Kc1 {[%clk 0:06:37.6]} 40... d4 {[%clk 0:02:12.9]} 0-1